bitfinex/quotes_ETHUSD_20250815
["timestamp","ask_amount","ask_price","bid_price","bid_amount"]
[1755249403923,8.07141192,4654.3,4654.2,1e-08]
[1755249404937,8.07141192,4654.3,4653.6,0.001]
[1755249404938,0.55,4654.0,4653.6,1e-08]
[1755249405106,2.25602781,4653.7,4653.6,1e-08]
[1755249405313,8.53919062,4653.7,4653.6,1e-08]
[1755249405536,8.71915082,4653.7,4653.6,1e-08]
[1755249405841,9.76355882,4653.7,4653.6,1e-08]
[1755249406039,9.27405882,4653.7,4653.6,1e-08]
[1755249406346,10.01368267,4653.7,4653.6,1e-08]
[1755249406497,9.81355966,4653.7,4653.6,1e-08]
[1755249406698,9.34475966,4653.7,4653.6,1e-08]
[1755249407197,9.80661023,4653.7,4653.6,1e-08]
[1755249408329,10.27541023,4653.7,4653.6,1e-08]
[1755249409238,9.80661023,4653.7,4653.6,1e-08]
[1755249409838,11.31491023,4653.7,4653.6,1e-08]
[1755249410339,11.31491023,4653.7,4651.3,0.9234]
[1755249410340,2.14896634,4653.4,4651.3,0.9234]
[1755249410504,2.14896634,4653.4,4650.5,2.23641998]
[1755249410505,2.14970549,4651.8,4651.7,0.4594]
[1755249410706,5.41670549,4651.8,4651.7,0.4594]
[1755249410906,5.41670549,4651.8,4651.7,0.9234]
[1755249411244,6.06267749,4651.8,4651.7,0.9234]
[1755249411430,5.41670549,4651.8,4651.7,0.9234]
[1755249415057,3.267,4651.8,4650.7,2.1501684]
[1755249415223,2.14979438,4651.7,4650.9,2.15008537]
[1755249415427,3.267,4651.6,4650.9,2.15008537]
[1755249415629,3.267,4651.6,4651.0,0.9045]
[1755249415926,3.267,4651.6,4651.1,0.9045]
[1755249416123,3.267,4651.6,4651.0,2.15007445]
[1755249416353,3.267,4651.6,4651.1,1.14100913]
[1755249416959,5.41680814,4651.6,4651.2,0.9045]
[1755249417167,3.267,4651.6,4651.3,0.9045]
[1755249417364,3.267,4651.6,4651.1,0.23650913]
[1755249417519,5.41681031,4651.6,4651.4,0.9045]
[1755249417720,2.14975282,4651.7,4651.5,0.9045]
[1755249417917,3.266,4651.6,4651.5,0.463]
[1755249418518,3.266,4651.6,4651.5,0.9045]
[1755249420373,3.3732,4651.6,4651.5,0.9045]
[1755249420575,0.1072,4651.6,4651.5,0.9045]
[1755249420779,0.1072,4651.6,4651.5,0.9053]
[1755249421276,3.3722,4651.6,4651.5,0.9053]
[1755249421640,0.1072,4651.6,4651.5,3.05514413]
[1755249421984,3.3722,4651.6,4651.5,1.42580765]
[1755249422740,3.3722,4651.6,4651.5,3.57565178]
[1755249422940,3.3722,4651.6,4651.5,1.42580765]
[1755249423257,3.3722,4651.6,4651.5,0.9053]
[1755249424372,0.1072,4651.6,4651.5,0.9053]
[1755249424577,3.3722,4651.6,4651.5,0.9053]
[1755249424952,3.3722,4651.6,4651.5,3.05514413]
[1755249425156,3.3712,4651.6,4651.5,3.05514413]
[1755249425482,3.3712,4651.6,4651.5,1.42580636]
[1755249425976,3.3712,4651.6,4651.5,3.57565049]
[1755249427388,0.1072,4651.6,4651.5,3.57565049]
[1755249427700,3.3712,4651.6,4651.5,3.57565049]
[1755249427988,0.1072,4651.6,4651.5,3.57565049]
[1755249428552,3.3712,4651.8,4651.5,3.57565049]
[1755249428751,3.264,4651.9,4651.6,1.70308225]
[1755249428955,3.3712,4652.0,4651.7,0.9045]
[1755249429154,3.3712,4652.0,4651.8,0.9045]
[1755249429356,3.3712,4652.0,4651.9,0.4415]
[1755249430251,3.3712,4652.0,4651.6,2.14458225]
[1755249430589,3.264,4651.9,4651.6,4.29437632]
[1755249430775,3.264,4651.9,4651.6,2.59129407]
[1755249430952,0.1072,4652.0,4651.7,2.5912517]
[1755249431290,3.264,4651.9,4651.7,3.0542517]
[1755249431605,3.264,4651.9,4651.7,2.9042517]
[1755249431909,3.264,4651.9,4651.5,2.67111404]
[1755249432398,3.264,4651.8,4651.6,2.14978988]
[1755249432774,3.264,4651.8,4651.6,1.99978988]
[1755249433101,3.264,4651.8,4651.7,2.1497517]
[1755249434770,3.264,4651.8,4651.6,2.1497928]
[1755249434970,0.1072,4652.0,4651.7,2.1497517]
[1755249435217,3.264,4651.9,4651.7,2.1497517]
[1755249437003,0.1072,4652.0,4651.6,0.44091963]
[1755249437201,3.264,4651.8,4651.7,2.1497517]
[1755249437497,3.264,4651.8,4651.7,2.5912517]
[1755249437807,3.264,4651.8,4651.7,4.15056528]
[1755249438370,3.264,4651.8,4651.7,3.68756528]
[1755249439205,3.2632,4651.8,4651.7,3.68756528]
[1755249440880,3.2632,4651.8,4651.7,3.68836528]
[1755249441471,3.2632,4651.8,4651.7,2.1505517]
[1755249442110,0.5703,4652.0,4651.7,2.1505517]
[1755249442316,3.264,4651.8,4651.7,2.1505517]
[1755249444316,3.264,4651.9,4651.8,2.14969177]
[1755249446612,3.264,4651.9,4651.7,2.1505435]
[1755249446816,3.264,4651.9,4651.7,0.0008]
[1755249447010,3.264,4651.9,4651.7,2.15054551]
[1755249447737,3.264,4651.9,4651.7,0.0008]
[1755249448013,6.0996683,4651.8,4651.7,0.0008]
[1755249448222,6.07950549,4651.8,4651.7,0.0008]
[1755249448726,6.16562949,4651.8,4651.7,0.0008]
[1755249449029,6.62618626,4651.8,4651.7,0.0008]
[1755249449215,6.85893057,4651.8,4651.7,0.0008]
[1755249450353,6.85893057,4651.8,4651.0,0.001]
[1755249450354,2.15002902,4651.1,4651.0,0.001]
[1755249450555,5.43419183,4651.1,4651.0,1e-08]
[1755249450767,9.34382902,4651.1,4651.0,1e-08]
[1755249451063,10.16960787,4651.1,4651.0,1e-08]
[1755249451836,11.20564414,4651.1,4651.0,1e-08]
[1755249453165,10.63016464,4651.1,4651.0,1e-08]
[1755249454871,2.15056,4650.0,4649.3,0.10350001]
[1755249455019,0.02016281,4650.9,4649.4,0.4305]
[1755249455219,2.15045457,4650.2,4649.5,0.4595]
[1755249455419,3.264,4650.1,4649.6,0.4305]
[1755249455672,2.15045457,4650.2,4649.6,0.4305]
[1755249455964,3.264,4650.0,4649.6,0.4305]
[1755249456329,3.264,4649.9,4649.7,0.89]
[1755249456659,0.65492984,4650.8,4649.3,0.10350001]
[1755249456858,2.15040216,4650.3,4649.3,0.53400001]
[1755249457026,2.15052714,4650.1,4649.3,2.68485676]
[1755249457520,5.41545515,4650.2,4649.4,2.15081465]
[1755249457720,0.1072,4649.6,4649.4,2.15081465]
[1755249457961,3.3722,4649.6,4649.4,2.15081465]
[1755249458263,3.3722,4649.6,4649.5,0.89]
[1755249460561,0.1072,4649.6,4649.5,3.04076889]
[1755249460874,3.265,4649.7,4649.6,2.15068366]
[1755249461074,3.265,4649.8,4649.6,3.04068366]
[1755249461242,3.265,4649.8,4649.7,3.04067638]
[1755249461444,3.265,4649.8,4649.7,0.89]
[1755249461834,3.265,4649.8,4649.3,0.21070001]
[1755249462039,0.1072,4649.4,4649.3,0.10350001]
[1755249462351,5.52301515,4649.4,4649.3,0.10350001]
[1755249464966,5.95431515,4649.4,4649.3,0.10350001]
[1755249465341,3.8035,4649.4,4649.3,0.10350001]
[1755249465549,3.82366281,4649.4,4649.3,0.10350001]
[1755249465968,5.97447796,4649.4,4649.3,0.10350001]
[1755249466271,5.95431515,4649.4,4649.3,0.10350001]
[1755249466976,3.8035,4649.4,4649.3,0.10350001]
[1755249467285,5.52301515,4649.4,4649.3,0.10350001]
[1755249467582,6.83800515,4649.4,4649.3,0.10350001]
[1755249469763,6.33950515,4649.4,4649.3,0.10350001]
[1755249471068,9.33950515,4649.4,4649.3,0.10450001]
[1755249471267,9.83800515,4649.4,4649.3,0.10450001]
[1755249475145,9.33950515,4649.4,4649.3,0.10450001]
[1755249475359,9.79870515,4649.4,4649.3,0.10450001]
[1755249477193,9.79870515,4649.4,4649.3,0.05610002]
[1755249478387,9.33950515,4649.4,4649.3,0.05610002]
[1755249478802,9.7991744,4649.4,4649.3,0.05610002]
[1755249479597,5.9956744,4649.4,4649.3,0.05610002]
[1755249479779,8.9836844,4649.4,4649.3,0.05610002]
[1755249480181,8.52401515,4649.4,4649.3,0.05610002]
[1755249480405,0.1072,4649.4,4649.3,0.05610002]
[1755249480605,3.3732,4649.4,4649.3,0.51990002]
[1755249481020,3.39336281,4649.4,4649.3,0.05690002]
[1755249481225,3.39256281,4649.4,4649.3,0.05690002]
[1755249482123,4.20766421,4649.4,4649.3,0.05690002]
[1755249482329,4.66466421,4649.4,4649.3,0.05690002]
[1755249482530,4.6445014,4649.4,4649.3,0.05690002]
[1755249482828,3.3724,4649.4,4649.3,0.05690002]
[1755249483123,3.39256281,4649.4,4649.3,0.05690002]
[1755249483486,6.00037796,4649.4,4649.3,0.05690002]
[1755249483688,6.43941515,4649.4,4649.3,0.05690002]
[1755249483991,9.43941515,4649.4,4649.3,0.05690002]
[1755249484194,10.59843165,4649.4,4649.3,0.05690002]
[1755249484731,2.15104553,4649.0,4648.2,2.05925281]
[1755249485032,0.1072,4648.6,4648.2,2.05925281]
[1755249485228,3.266,4648.5,4648.1,3.07961655]
[1755249485531,0.1072,4648.6,4648.4,2.15127785]
[1755249485725,3.266,4648.5,4648.4,2.15127785]
[1755249485929,3.266,4648.5,4648.4,3.07947785]
[1755249487099,3.266,4648.5,4648.2,2.15132858]
[1755249487427,3.266,4648.5,4648.2,3.07952858]
[1755249487796,3.266,4648.5,4648.3,2.15129831]
[1755249488016,3.266,4648.5,4648.2,2.15136416]
[1755249488217,3.266,4648.5,4648.3,0.001]
[1755249488735,0.1072,4648.4,4648.3,0.001]
[1755249489841,3.3752,4648.4,4648.3,0.001]
[1755249494354,3.8322,4648.4,4648.3,0.001]
[1755249495937,5.98347785,4648.4,4648.3,0.001]
[1755249496133,7.25614432,4648.4,4648.3,0.001]
[1755249497645,5.10486647,4648.4,4648.3,0.001]
[1755249498171,7.25614432,4648.4,4648.3,0.001]
[1755249498570,5.10486647,4648.4,4648.3,0.001]
[1755249498935,7.25614432,4648.4,4648.3,0.001]
[1755249499145,5.10486647,4648.4,4648.3,0.001]
[1755249499349,1.37766647,4648.4,4648.3,0.001]
[1755249499550,3.3732,4648.4,4648.3,0.001]
[1755249506166,3.8358,4648.4,4648.3,0.001]
[1755249506596,3.3732,4648.4,4648.3,0.001]
[1755249509466,3.8358,4648.4,4648.3,0.001]
[1755249511176,3.3732,4648.4,4648.3,0.001]
[1755249515284,0.1072,4648.4,4648.3,0.001]
[1755249515469,3.3732,4648.4,4648.3,0.001]
[1755249521709,3.8358,4648.4,4648.3,0.001]
[1755249521911,4.3314,4648.4,4648.3,0.001]
[1755249522415,3.8378,4648.4,4648.3,0.001]
[1755249522611,7.13093813,4648.4,4648.3,0.001]
[1755249523395,7.13013813,4648.4,4648.3,0.001]
[1755249523591,10.59226306,4648.4,4648.3,0.001]
[1755249523804,10.48586306,4648.4,4648.3,0.001]
[1755249525014,11.06099182,4648.4,4648.3,0.001]
[1755249526326,10.48586306,4648.4,4648.3,0.001]
[1755249529354,11.06244886,4648.4,4648.3,0.001]
[1755249530531,11.06164886,4648.4,4648.3,0.001]
[1755249530851,11.06164886,4648.4,4648.3,0.0018]
[1755249531832,2.15137042,4648.2,4648.1,0.001]
[1755249532032,8.43853323,4648.2,4648.1,0.001]
[1755249532354,9.80819535,4648.2,4648.1,0.001]
[1755249532522,2.15155557,4647.8,4647.7,0.001]
[1755249532725,8.43871838,4647.8,4647.7,0.001]
[1755249532926,9.57899988,4647.8,4647.7,0.001]
[1755249533736,9.68619988,4647.8,4647.7,0.001]
[1755249533938,10.14832481,4647.8,4647.7,0.001]
[1755249534931,9.22062481,4647.8,4647.7,0.001]
[1755249535134,10.22032481,4647.8,4647.7,1e-08]
[1755249535322,10.22032481,4647.8,4646.8,0.001]
[1755249535323,0.55,4647.5,4646.8,0.001]
[1755249535533,2.15164816,4647.6,4646.8,0.001]
[1755249535534,3.0,4647.2,4646.8,0.001]
[1755249535734,2.15197228,4646.9,4646.8,0.001]
[1755249535951,8.45213509,4646.9,4646.8,0.001]
[1755249536139,9.35967228,4646.9,4646.8,0.001]
[1755249536571,9.93504297,4646.9,4646.8,0.001]
[1755249536733,10.97589582,4646.9,4646.8,0.001]
[1755249537563,10.86265006,4646.9,4646.8,0.001]
[1755249539139,7.58265006,4646.9,4646.8,0.001]
[1755249539335,10.86165006,4646.9,4646.8,0.001]
[1755249540363,11.41165006,4646.9,4646.8,0.001]
[1755249542779,11.68047374,4646.9,4646.8,0.001]
[1755249542952,11.76671774,4646.9,4646.8,0.001]
[1755249543152,11.76671774,4646.9,4646.8,1e-08]
[1755249543949,12.34208843,4646.9,4646.8,1e-08]
[1755249544850,11.76671774,4646.9,4646.8,1e-08]
[1755249545383,11.87391774,4646.9,4646.8,1e-08]
[1755249545790,5.70201859,4646.8,4646.3,1e-08]
[1755249545972,17.11317201,4646.4,4646.3,1e-08]
[1755249546279,22.54737586,4646.4,4646.3,1e-08]
[1755249546482,9.56540385,4646.4,4646.3,1e-08]
[1755249546663,10.01510385,4646.4,4646.3,1e-08]
[1755249546864,10.95522878,4646.4,4646.3,1e-08]
[1755249547051,11.5253936,4646.4,4646.3,1e-08]
[1755249547990,6.7656936,4646.4,4646.3,1e-08]
[1755249548157,10.0476936,4646.4,4646.3,1e-08]
[1755249548357,9.5744936,4646.4,4646.3,1e-08]
[1755249548663,10.0241936,4646.4,4646.3,1e-08]
[1755249549159,6.2924936,4646.4,4646.3,1e-08]
[1755249549367,6.2924936,4646.4,4646.3,0.93640001]
[1755249549565,9.5744936,4646.4,4646.3,1e-08]
[1755249550164,9.5744936,4646.4,4646.3,0.93640001]
[1755249550698,9.11236867,4646.4,4646.3,0.93640001]
[1755249550997,9.11236867,4646.4,4646.3,1e-08]
[1755249551368,5.54220385,4646.4,4646.3,1e-08]
[1755249551698,5.26020385,4646.4,4646.3,0.93640001]
[1755249551891,8.54120385,4646.4,4646.3,0.93640001]
[1755249553163,8.54120385,4646.4,4646.3,1e-08]
[1755249553389,9.61053999,4646.4,4646.3,1e-08]
[1755249554899,10.06963484,4646.4,4646.3,1e-08]
[1755249555062,11.30708321,4646.4,4646.3,1e-08]
[1755249555266,25.31225522,4646.4,4646.3,1e-08]
[1755249556202,26.0802015,4646.4,4646.3,1e-08]
[1755249556399,27.07073436,4646.4,4646.3,1e-08]
[1755249557498,12.26021005,4646.4,4646.3,1e-08]
[1755249558702,11.26051005,4646.4,4646.3,1e-08]
[1755249558898,17.07635505,4646.4,4646.3,1e-08]
[1755249559071,17.52605505,4646.4,4646.3,1e-08]
[1755249559675,18.07605505,4646.4,4646.3,1e-08]
[1755249559992,18.55405505,4646.4,4646.3,1e-08]
[1755249560172,18.55505505,4646.4,4646.3,1e-08]
[1755249560702,15.27205505,4646.4,4646.3,1e-08]
[1755249561005,18.55505505,4646.4,4646.3,1e-08]
[1755249561835,17.07635505,4646.4,4646.3,1e-08]
[1755249562006,16.42951005,4646.4,4646.3,1e-08]
[1755249562392,18.05701158,4646.4,4646.3,1e-08]
[1755249562910,14.30181158,4646.4,4646.3,1e-08]
[1755249563122,14.30181158,4646.4,4646.3,0.94480001]
[1755249563123,13.51547544,4646.4,4646.3,0.94480001]
[1755249563488,16.51547544,4646.4,4646.3,0.94480001]
[1755249563684,15.36117391,4646.4,4646.3,0.94480001]
[1755249563890,12.07817391,4646.4,4646.3,0.94480001]
[1755249564091,15.36217391,4646.4,4646.3,1e-08]
[1755249564492,15.16183156,4646.4,4646.3,1e-08]
[1755249565589,15.16203156,4646.4,4646.3,1e-08]
[1755249565790,11.87803156,4646.4,4646.3,1e-08]
[1755249566027,15.16203156,4646.4,4646.3,0.49930001]
[1755249567094,15.16203156,4646.4,4646.3,1e-08]
[1755249570625,15.92926608,4646.4,4646.3,1e-08]
[1755249571542,16.12930137,4646.4,4646.3,1e-08]
[1755249572313,16.60250137,4646.4,4646.3,1e-08]
[1755249572828,16.60450137,4646.4,4646.3,1e-08]
[1755249573418,16.13130137,4646.4,4646.3,1e-08]
[1755249574838,12.08006685,4646.4,4646.3,1e-08]
[1755249575042,15.36206685,4646.4,4646.3,1e-08]
[1755249575832,11.88003156,4646.4,4646.3,1e-08]
[1755249576045,15.16203156,4646.4,4646.3,1e-08]
[1755249578047,9.99303156,4646.4,4646.3,1e-08]
[1755249579155,6.71103156,4646.4,4646.3,1e-08]
[1755249579454,9.99203156,4646.4,4646.3,1e-08]
[1755249580556,9.99203156,4646.4,4646.3,0.00080001]
[1755249581881,10.46523156,4646.4,4646.3,0.00080001]
[1755249582247,10.93133156,4646.4,4646.3,0.00080001]
[1755249582431,11.24107993,4646.4,4646.3,0.00080001]
[1755249582637,11.79107993,4646.4,4646.3,0.00080001]
[1755249582873,12.55831445,4646.4,4646.3,0.00080001]
[1755249583039,13.25769602,4646.4,4646.3,0.00080001]
[1755249583548,13.25769602,4646.4,4645.8,1e-08]
[1755249583742,2.26043548,4645.9,4645.8,1e-08]
[1755249583945,9.32683281,4645.9,4645.8,1e-08]
[1755249584134,10.24597,4645.9,4645.8,1e-08]
[1755249584568,10.44605157,4645.9,4645.8,1e-08]
[1755249584973,10.1379119,4645.9,4645.8,1e-08]
[1755249585865,9.6718119,4645.9,4645.8,1e-08]
[1755249586260,10.1379119,4645.9,4645.8,1e-08]
[1755249586465,10.29661341,4645.9,4645.8,1e-08]
[1755249587377,7.32736178,4645.9,4645.8,1e-08]
[1755249587582,10.60636178,4645.9,4645.8,1e-08]
[1755249588311,24.06153379,4645.9,4645.8,1e-08]
[1755249589415,24.61153379,4645.9,4645.8,1e-08]
[1755249591497,24.73138714,4645.9,4645.8,1e-08]
[1755249591680,2.15289887,4644.9,4644.8,0.001]
[1755249591880,8.55906168,4644.9,4644.8,0.001]
[1755249592087,8.53889887,4644.9,4644.8,0.001]
[1755249593099,8.99799372,4644.9,4644.8,0.001]
[1755249597440,8.99699372,4644.9,4644.8,0.001]
[1755249597943,8.99699372,4644.9,4644.8,0.9427]
[1755249598239,8.99599372,4644.9,4644.8,0.9427]
[1755249598832,5.71999372,4644.9,4644.8,0.9427]
[1755249599005,8.99599372,4644.9,4644.8,0.9427]
[1755249599210,8.99599372,4644.9,4644.8,0.001]
[1755249599704,5.71999372,4644.9,4644.8,0.001]
[1755249599922,8.99599372,4644.9,4644.8,0.001]
[1755249600535,5.71999372,4644.9,4644.8,0.001]
[1755249600733,3.84209485,4644.9,4644.8,0.9427]
[1755249600941,8.99499372,4644.9,4644.8,0.9427]
[1755249601338,8.53589887,4644.9,4644.8,0.9427]
[1755249601841,8.53589887,4644.9,4644.8,0.4747]
[1755249602137,5.26089887,4644.9,4644.8,0.9427]
[1755249602344,8.53589887,4644.9,4644.8,0.9427]
[1755249604043,8.53589887,4644.9,4644.8,0.001]
[1755249604750,5.26089887,4644.9,4644.8,0.9427]
[1755249604918,8.53589887,4644.9,4644.8,0.9427]
[1755249605125,3.108,4644.9,4644.8,0.9427]
[1755249605420,3.383,4644.9,4644.8,0.9427]
[1755249605840,0.108,4644.9,4644.8,0.9427]
[1755249606028,5.17,4645.3,4644.8,0.9427]
[1755249606029,0.108,4645.0,4644.8,0.9427]
[1755249606225,3.275,4644.9,4644.8,0.001]
[1755249606722,3.275,4644.9,4644.8,2.15394522]
[1755249606961,3.277,4644.9,4644.8,3.09564415]
[1755249607451,3.277,4644.9,4644.8,0.9427]
[1755249607656,3.277,4644.9,4644.8,3.20364522]
[1755249608230,3.2762,4644.9,4644.8,5.30013258]
[1755249608744,3.278,4644.9,4644.8,3.14718736]
[1755249609060,0.002,4645.9,4644.9,0.55]
[1755249609361,0.002,4645.9,4645.8,2.26048181]
[1755249609511,1e-08,4645.9,4645.8,5.83200662]
[1755249609854,1e-08,4645.9,4645.8,7.55063529]
[1755249612162,1e-08,4645.9,4645.8,0.79845348]
[1755249612365,1e-08,4645.9,4645.5,2.2606127]
[1755249612959,1e-08,4645.9,4645.8,2.15248181]
[1755249613439,1e-08,4645.9,4645.7,2.15251902]
[1755249613628,1e-08,4645.9,4645.6,13.45517201]
[1755249613629,1e-08,4645.9,4645.6,0.468]
[1755249613833,1e-08,4645.9,4645.4,2.62634989]
[1755249614018,1e-08,4645.9,4645.5,0.32023499]
[1755249614214,0.108,4645.6,4645.1,0.468]
[1755249614530,3.283,4645.5,4645.0,2.15281033]
[1755249614734,5.43563746,4645.5,4644.8,3.03918736]
[1755249614944,5.43563746,4645.5,4644.8,0.9427]
[1755249615148,3.283,4645.5,4644.8,0.4747]
[1755249615372,3.283,4645.5,4644.8,0.001]
[1755249615557,0.108,4645.2,4644.8,0.001]
[1755249615782,0.108,4645.2,4644.8,0.22719902]
[1755249616778,3.283,4645.1,4644.9,0.9417]
[1755249616963,3.283,4645.1,4645.0,0.9417]
[1755249617281,3.282,4645.1,4645.0,0.9417]
[1755249617441,3.282,4645.1,4645.0,3.09455252]
[1755249617771,3.282,4645.1,4645.0,0.4737]
[1755249618472,3.282,4645.1,4645.0,2.94691147]
[1755249618672,3.282,4645.1,4645.0,3.41491147]
[1755249619671,3.282,4645.1,4645.0,0.32035895]
[1755249619869,0.108,4645.5,4645.0,0.79405895]
[1755249620037,0.108,4645.5,4645.0,0.4737]
[1755249620237,3.282,4645.4,4645.0,2.62651746]
[1755249620579,3.281,4645.4,4645.2,2.15275983]
[1755249620748,3.282,4645.5,4645.2,2.15275983]
[1755249620939,3.282,4645.6,4645.3,2.51329318]
[1755249621275,3.282,4645.8,4645.7,2.15252814]
[1755249621572,3.28200001,4645.9,4645.7,0.9417]
[1755249621757,3.28200001,4645.9,4645.5,0.108]
[1755249622141,0.108,4645.7,4645.1,2.26080399]
[1755249622368,0.108,4645.7,4645.2,0.2260804]
[1755249623872,3.282,4645.6,4645.3,0.9569]
[1755249624035,3.282,4645.6,4645.2,2.15271748]
[1755249624242,3.282,4645.6,4645.1,2.26079347]
[1755249624447,3.283,4645.5,4645.2,2.64295842]
[1755249624771,3.283,4645.5,4645.3,0.76539584]
[1755249625474,3.283,4645.5,4645.3,0.27519584]
[1755249626154,0.108,4645.7,4645.3,0.27519584]
[1755249626479,3.283,4645.4,4645.3,0.27519584]
[1755249626854,3.282,4645.4,4645.3,0.27519584]
[1755249627276,0.108,4645.7,4645.3,0.27519584]
[1755249627577,3.282,4645.4,4645.1,0.108]
[1755249627777,3.282,4645.4,4645.3,0.4902]
[1755249628675,0.108,4645.7,4645.3,0.4902]
[1755249628676,0.108,4645.7,4645.4,2.15264369]
[1755249628871,3.281,4645.6,4645.3,2.64290926]
[1755249629075,3.281,4645.6,4645.4,1.27866093]
[1755249629589,0.108,4645.7,4645.4,0.81196093]
[1755249629590,3.281,4645.5,4645.4,0.81196093]
[1755249629800,3.281,4645.5,4645.4,0.4902]
[1755249629954,3.281,4645.5,4645.2,2.15275624]
[1755249630154,3.281,4645.5,4645.1,2.72749611]
[1755249630381,3.281,4645.5,4645.1,2.26079611]
[1755249630580,3.281,4645.5,4645.1,2.26159611]
[1755249630890,3.281,4645.5,4645.2,2.15274166]
[1755249631190,3.281,4645.5,4645.3,0.27527417]
[1755249631793,3.7436,4645.5,4645.1,2.26159279]
[1755249631970,3.281,4645.5,4645.1,2.26159279]
[1755249632606,3.281,4645.5,4645.1,0.1088]
[1755249633459,3.281,4645.5,4645.1,0.0008]
[1755249633989,2.26075983,4645.2,4645.1,0.0008]
[1755249634359,2.72335983,4645.2,4645.1,0.0008]
[1755249634563,3.17405983,4645.2,4645.1,0.0008]
[1755249636065,4.03684928,4645.2,4645.1,0.0008]
[1755249638320,7.31684928,4645.2,4645.1,0.0008]
[1755249640062,3.12354928,4645.2,4645.1,0.0008]
[1755249640302,5.53975983,4645.2,4645.1,0.0008]
[1755249640792,6.45305983,4645.2,4645.1,0.0008]
[1755249642298,3.389,4645.2,4645.1,0.0008]
[1755249642499,3.389,4645.2,4645.1,0.491]
[1755249642803,0.108,4645.2,4645.1,2.41819528]
[1755249642970,3.389,4645.2,4645.1,1.2222891]
[1755249643170,3.389,4645.2,4645.1,0.7555891]
[1755249643398,3.389,4645.2,4645.1,0.491]
[1755249644906,0.108,4645.2,4645.1,0.0008]
[1755249645076,3.389,4645.2,4645.1,0.0008]
[1755249647210,3.389,4645.2,4645.1,2.15360618]
[1755249647511,0.108,4645.6,4645.2,2.15271936]
[1755249647813,3.28,4645.5,4645.2,2.15271936]
[1755249647980,3.28,4645.5,4645.2,3.64684654]
[1755249648419,3.28,4645.5,4645.3,2.64290429]
[1755249648586,3.28,4645.5,4645.3,0.9569]
[1755249648780,3.28,4645.5,4645.3,0.4902]
[1755249648981,3.28,4645.5,4645.2,0.53722718]
[1755249649818,3.28,4645.5,4645.2,2.68998265]
[1755249650005,3.28,4645.5,4645.3,2.15270673]
[1755249650205,3.2792,4645.5,4645.3,2.15270673]
[1755249650418,3.2792,4645.5,4645.2,3.18017571]
[1755249650717,0.108,4645.6,4645.5,2.15262081]
[1755249651015,3.279,4645.6,4645.5,3.11032081]
[1755249651884,3.279,4645.6,4645.5,2.64362081]
[1755249653515,3.279,4645.6,4645.5,2.15342081]
[1755249654788,3.279,4645.6,4645.5,0.0008]
[1755249655293,3.279,4645.6,4645.5,2.15342081]
[1755249655512,3.279,4645.6,4645.5,2.62665362]
[1755249656203,3.277,4645.7,4645.6,2.15254413]
[1755249657120,3.277,4645.7,4645.6,2.15257447]
[1755249658005,3.277,4645.7,4645.5,0.47403281]
[1755249658391,3.276,4645.7,4645.5,0.0008]
[1755249659930,3.276,4645.7,4645.6,2.15257447]
[1755249660430,1e-08,4645.9,4645.8,2.15248181]
[1755249660610,3.27500001,4645.9,4645.6,2.15252858]
[1755249661025,3.70560001,4645.9,4645.5,2.15341307]
[1755249661230,0.4306,4645.8,4645.5,2.15341307]
[1755249661404,0.4306,4645.8,4645.5,0.44221726]
[1755249661610,3.27500001,4645.9,4645.5,0.0008]
[1755249661805,1e-08,4645.9,4645.8,2.15248181]
[1755249662321,3.27400001,4645.9,4645.8,2.15248181]
[1755249662516,1e-08,4645.9,4645.8,2.15248181]
[1755249662701,3.27400001,4645.9,4645.7,2.2605198]
[1755249662901,3.27400001,4645.9,4645.8,0.22613198]
[1755249663628,3.27400001,4645.9,4645.8,2.37861379]
[1755249663836,3.27400001,4645.9,4645.8,0.22613198]
[1755249664727,3.27400001,4645.9,4645.8,2.37861379]
[1755249664930,3.27400001,4645.9,4645.8,0.22613198]
[1755249665227,3.27400001,4645.9,4645.6,2.15257447]
[1755249666338,3.27400001,4645.9,4645.5,0.0008]
[1755249666339,3.27400001,4645.9,4645.7,2.15251893]
[1755249666635,1e-08,4645.9,4645.6,2.15257396]
[1755249666834,3.274,4645.8,4645.6,2.15257396]
[1755249667133,3.274,4645.8,4645.7,2.15252401]
[1755249668636,3.274,4645.8,4645.6,2.152572]
[1755249669133,3.274,4645.8,4645.5,2.15340789]
[1755249669338,3.274,4645.8,4645.6,2.15256809]
[1755249670338,3.274,4645.8,4645.5,0.0008]
[1755249670538,3.274,4645.8,4645.6,2.37870824]
[1755249670859,3.274,4645.8,4645.6,0.2261507]
[1755249671437,3.274,4645.8,4645.6,0.2269507]
[1755249673146,3.274,4645.8,4645.6,0.0008]
[1755249673343,0.9301,4645.7,4645.6,0.0008]
[1755249673510,1.0381,4645.7,4645.6,0.0008]
[1755249674034,3.21079095,4645.7,4645.6,0.0008]
[1755249674228,3.85756295,4645.7,4645.6,0.0008]
[1755249674446,4.76580096,4645.7,4645.6,0.0008]
[1755249675321,7.76580096,4645.7,4645.6,0.0008]
[1755249676220,8.22630036,4645.7,4645.6,0.0008]
[1755249678718,7.72680036,4645.7,4645.6,0.0008]
[1755249679045,10.07139954,4645.7,4645.6,0.0008]
[1755249679252,10.57089954,4645.7,4645.6,0.0008]
[1755249679554,10.11040014,4645.7,4645.6,0.0008]
[1755249683166,6.83740014,4645.7,4645.6,0.0008]
[1755249683378,9.18130014,4645.7,4645.6,0.0008]
[1755249683572,10.10910014,4645.7,4645.6,0.0008]
[1755249685267,8.53452814,4645.7,4645.6,0.0008]
[1755249685668,9.08136614,4645.7,4645.6,0.0008]
[1755249685892,9.54856614,4645.7,4645.6,0.0008]
[1755249686180,10.71866778,4645.7,4645.6,0.0008]
[1755249688368,10.25146778,4645.7,4645.6,0.0008]
[1755249688535,9.08136614,4645.7,4645.6,0.0008]
[1755249689376,9.54856614,4645.7,4645.6,0.0008]